[Event "9. Korbacher Open 2017"]
[Site "Korbach"]
[Date "2017.10.21"]
[Round "5"]
[White "Basovskiy, Jana"]
[Black "Deutsch, Christoph"]
[Result "0-1"]
[ECO "C54"]
[WhiteElo "1825"]
[BlackElo "1755"]
[Annotator "NA"]
[PlyCount "120"]
[EventDate "2017.??.??"]
[EventType "swiss"]
[EventCountry "GER"]
[SourceTitle "playchess.com"]
[Source "ChessBase"]
[SourceQuality "1"]
[TimeControl "40/5400+30:1800+30"]

1. e4 {[%emt 0:00:00]} e5 {[%emt 0:00:12]} 2. Nf3 {[%emt 0:00:00]} Nc6 {[%emt 0:00:20]} 3. Bc4 {[%emt 0:00:00]} Bc5 {[%emt 0:00:17]} 4. c3 {[%emt 0:00:00]} Nf6 {[%emt 0:00:15]} 5. d4 {[%emt 0:00:00]} exd4 {[%emt 0:00:18]} 6. e5 d5 {[%emt 0:01:00]} 7. Bb5 {[%emt 0:00:07]} Ne4 {[%emt 0:00:40]} 8. cxd4 {[%emt 0:00:05]} Bb6 {[%emt 0:00:29]} 9. Nc3 {[%emt 0:00:22]} Bg4 {[%emt 0:00:53]} 10. Be3 {[%emt 0:00:15]} O-O {[%emt 0:01:05]} 11. Be2 Nxc3 {[%emt 0:01:55]} 12. bxc3 {[%emt 0:04:11]} f6 {[%emt 0:00:45]} 13. exf6 {[%emt 0:00:53]} Qxf6 {[%emt 0:01:33]} 14. O-O {[%emt 0:00:45]} Rae8 {[%emt 0:01:33]} 15. Qb3 {[%emt 0:06:39]} Ne7 {[%emt 0:04:10]} 16. Bg5 {[%emt 0:04:15]} Qe6 {[%emt 0:04:52]} 17. Rae1 {[%emt 0:07:06]} c6 {[%emt 0:02:18]} 18. Bd1 {[%emt 0:06:33]} Qd6 {[%emt 0:01:57]} 19. Ne5 {[%emt 0:03:53]} Bxd1 {[%emt 0:01:25]} 20. Qxd1 {[%emt 0:00:10]} Ng6 {[%emt 0:01:54]} 21. Nd3 {[%emt 0:07:24]} Bc7 {[%emt 0:01:42]} 22. g3 {[%emt 0:00:49]} b6 {[%emt 0:05:38]} 23. Bc1 {[%emt 0:03:11]} Qf6 {[%emt 0:09:56]} 24. Qb3 {[%emt 0:08:24]} Qf5 {[%emt 0:07:31]} 25. Rxe8 {[%emt 0:11:04]} Rxe8 {[%emt 0:00:20]} 26. Nb4 {[%emt 0:00:10]} Re6 {[%emt 0:06:25]} 27. Qa4 {[%emt 0:02:12]} Qh3 {[%emt 0:04:57]} 28. Qc2 {[%emt 0:07:05]} Nh4 {[%emt 0:01:23]} 29. f4 {[%emt 0:00:33]} Nf3+ {[%emt 0:01:25]} 30. Kf2 {[%emt 0:01:40]} Nxh2 {[%emt 0:00:59]} 31. Rg1 {[%emt 0:02:48]} Qh5 {[%emt 0:13:22]} 32. Qd1 {[%emt 0:02:00]} Ng4+ {[%emt 0:00:33]} 33. Kg2 {[%emt 0:00:29]} Qh2+ {[%emt 0:04:56]} 34. Kf3 {[%emt 0:01:12]} Nf2 {[%emt 0:02:03]} 35. Qf1 {[%emt 0:01:35]} Ne4 {[%emt 0:00:48]} 36. Qg2 {[%emt 0:02:28]} Qxg2+ {[%emt 0:08:59]} 37. Rxg2 {[%emt 0:01:33]} Nxc3 {[%emt 0:00:45]} 38. Rc2 {[%emt 0:00:07]} a5 {[%emt 0:04:58]} 39. Nxc6 {[%emt 0:04:54]} Rxc6 {[%emt 0:02:37]} 40. Bb2 {[%emt 0:00:06]} b5 {[%emt 0:32:06]} 41. Rxc3 {[%emt 0:30:52]} Rc4 {[%emt 0:00:53]} 42. Ke3 {[%emt 0:01:24]} Kf7 {[%emt 0:00:49]} 43. a3 {[%emt 0:01:28]} Bb6 {[%emt 0:00:00]} 44. Rb3 {[%emt 0:00:00]} b4 {[%emt 0:00:00]} 45. axb4 {[%emt 0:00:00]} axb4 {[%emt 0:00:00]} 46. g4 {[%emt 0:00:00]} Kf6 {[%emt 0:00:00]} 47. Ba1 {[%emt 0:00:00]} g6 {[%emt 0:00:00]} 48. Rb1 {[%emt 0:00:00]} Bc7 {[%emt 0:00:00]} 49. Rh1 {[%emt 0:00:00]} Kg7 {[%emt 0:00:00]} 50. Rb1 {[%emt 0:00:00]} Bd6 {[%emt 0:00:00]} 51. Kf3 {[%emt 0:00:00]} Rc7 {[%emt 0:00:00]} 52. Re1 {[%emt 0:00:00]} Rf7 {[%emt 0:00:00]} 53. f5 {[%emt 0:00:00]} gxf5 {[%emt 0:00:00]} 54. gxf5 {[%emt 0:00:00]} Rxf5+ {[%emt 0:00:00]} 55. Kg2 {[%emt 0:00:00]} Kf7 {[%emt 0:00:00]} 56. Bb2 {[%emt 0:00:00]} h5 {[%emt 0:00:00]} 57. Rc1 {[%emt 0:00:00]} Ke7 {[%emt 0:00:00]} 58. Rc8 {[%emt 0:00:00]} Rf8 {[%emt 0:00:00]} 59. Rc1 {[%emt 0:00:00]} Kd7 {[%emt 0:00:00]} 60. Kh3 {[%emt 0:00:00]} Rf2 {[%emt 0:00:00]} 0-1

[Event "9. Korbacher Open 2017"]
[Site "Korbach"]
[Date "2017.10.21"]
[Round "5"]
[White "Shkolnyk, Boris"]
[Black "Simukov, Erik"]
[Result "1-0"]
[ECO "D12"]
[WhiteElo "1812"]
[BlackElo "1621"]
[Annotator "NA"]
[PlyCount "87"]
[EventDate "2017.??.??"]
[EventType "swiss"]
[EventCountry "GER"]
[SourceTitle "playchess.com"]
[Source "ChessBase"]
[SourceQuality "1"]
[TimeControl "40/5400+30:1800+30"]

1. d4 {[%emt 0:01:43]} d5 {[%emt 0:00:17]} 2. Nf3 {[%emt 0:00:34]} Nf6 {[%emt 0:00:16]} 3. e3 {[%emt 0:00:24]} Bf5 {[%emt 0:01:54]} 4. c4 {[%emt 0:00:51]} c6 {[%emt 0:01:45]} 5. Nc3 {[%emt 0:00:15]} e6 {[%emt 0:01:29]} 6. Be2 {[%emt 0:03:38]} Bd6 {[%emt 0:01:08]} 7. O-O {[%emt 0:00:37]} h6 {[%emt 0:00:32]} 8. Qb3 {[%emt 0:01:44]} Qc7 {[%emt 0:00:16]} 9. Bd2 {[%emt 0:06:01]} Nbd7 {[%emt 0:02:11]} 10. h3 {[%emt 0:06:51]} O-O {[%emt 0:02:40]} 11. Rac1 {[%emt 0:00:56]} a6 {[%emt 0:03:20]} 12. cxd5 {[%emt 0:00:37]} exd5 {[%emt 0:00:34]} 13. Qd1 {[%emt 0:06:31]} Rfe8 {[%emt 0:00:17]} 14. Ne1 {[%emt 0:06:35]} Qd8 {[%emt 0:01:04]} 15. Bd3 {[%emt 0:05:57]} Bxd3 {[%emt 0:02:40]} 16. Nxd3 {[%emt 0:01:59]} Ne4 {[%emt 0:00:31]} 17. f4 {[%emt 0:03:11]} Qe7 {[%emt 0:02:35]} 18. Ne5 {[%emt 0:04:52]} f5 {[%emt 0:04:33]} 19. Nxe4 {[%emt 0:01:31]} fxe4 {[%emt 0:00:37]} 20. Be1 {[%emt 0:00:47]} Nxe5 {[%emt 0:01:21]} 21. fxe5 {[%emt 0:00:36]} Bc7 {[%emt 0:00:11]} 22. Qg4 {[%emt 0:01:15]} Bd8 {[%emt 0:06:55]} 23. Rf6 {[%emt 0:09:10]} Rf8 {[%emt 0:05:53]} 24. Rxh6 {[%emt 0:03:21]} Qg5 {[%emt 0:00:29]} 25. Qe6+ {[%emt 0:06:23]} Rf7 {[%emt 0:00:02]} 26. Qe8+ {[%emt 0:00:34]} Rf8 {[%emt 0:00:02]} 27. Rh8+ {[%emt 0:00:27]} Kxh8 {[%emt 0:00:03]} 28. Qxf8+ {[%emt 0:00:33]} Kh7 {[%emt 0:00:03]} 29. Bd2 {[%emt 0:02:36]} Ba5 {[%emt 0:05:48]} 30. Qf2 {[%emt 0:03:03]} Bxd2 {[%emt 0:00:14]} 31. Qxd2 {[%emt 0:00:15]} Rf8 {[%emt 0:00:08]} 32. Rf1 {[%emt 0:01:16]} Rxf1+ {[%emt 0:00:49]} 33. Kxf1 {[%emt 0:00:05]} Kg8 {[%emt 0:01:21]} 34. Qf2 {[%emt 0:00:32]} c5 {[%emt 0:02:15]} 35. h4 {[%emt 0:01:47]} Qh5 {[%emt 0:00:49]} 36. g3 {[%emt 0:01:23]} cxd4 {[%emt 0:00:52]} 37. exd4 {[%emt 0:00:37]} Qh6 {[%emt 0:00:49]} 38. Kg2 {[%emt 0:02:45]} Qg6 {[%emt 0:02:42]} 39. Kh3 {[%emt 0:03:25]} Qe6+ {[%emt 0:07:00]} 40. g4 {[%emt 0:00:51]} Qd7 {[%emt 0:30:21]} 41. h5 {[%emt 0:31:07]} Qb5 {[%emt 0:01:08]} 42. e6 {[%emt 0:03:57]} Qd3+ {[%emt 0:00:24]} 43. Kh4 {[%emt 0:00:06]} Qd1 {[%emt 0:02:21]} 44. e7 {[%emt 0:01:21]} 1-0

[Event "9. Korbacher Open 2017"]
[Site "Korbach"]
[Date "2017.10.21"]
[Round "5"]
[White "Mak, Nico"]
[Black "Kirchner, Markus"]
[Result "0-1"]
[ECO "C06"]
[WhiteElo "1799"]
[BlackElo "1884"]
[Annotator "NA"]
[PlyCount "40"]
[EventDate "2017.??.??"]
[EventType "swiss"]
[EventCountry "GER"]
[SourceTitle "playchess.com"]
[Source "ChessBase"]
[SourceQuality "1"]
[TimeControl "40/5400+30:1800+30"]

1. e4 {[%emt 0:00:00]} e6 {[%emt 0:00:11]} 2. d4 {[%emt 0:00:00]} d5 {[%emt 0:00:17]} 3. Nd2 {[%emt 0:00:01]} Nf6 {[%emt 0:00:08]} 4. e5 {[%emt 0:00:06]} Nfd7 {[%emt 0:00:05]} 5. Bd3 {[%emt 0:00:26]} c5 {[%emt 0:00:13]} 6. c3 {[%emt 0:00:08]} Nc6 {[%emt 0:00:11]} 7. Ne2 {[%emt 0:02:11]} cxd4 {[%emt 0:00:38]} 8. cxd4 {[%emt 0:00:32]} f6 {[%emt 0:01:38]} 9. exf6 {[%emt 0:04:40]} Nxf6 {[%emt 0:00:29]} 10. Nf3 {[%emt 0:02:05]} Bd6 {[%emt 0:02:45]} 11. Bf4 {[%emt 0:01:51]} O-O {[%emt 0:00:40]} 12. O-O {[%emt 0:01:33]} Re8 {[%emt 0:02:48]} 13. Bxd6 {[%emt 0:11:58]} Qxd6 {[%emt 0:00:12]} 14. Nc3 {[%emt 0:13:11]} e5 {[%emt 0:02:18]} 15. dxe5 {[%emt 0:10:37]} Nxe5 {[%emt 0:00:10]} 16. Nxe5 {[%emt 0:02:05]} Rxe5 {[%emt 0:00:13]} 17. Nb5 {[%emt 0:03:01]} Qb6 {[%emt 0:04:40]} 18. Qd2 {[%emt 0:06:47]} a6 {[%emt 0:01:25]} 19. Nd4 {[%emt 0:00:53]} Ne4 {[%emt 0:02:10]} 20. Qf4 {[%emt 0:11:40]} Qxd4 {[%emt 0:03:49]} 0-1

[Event "9. Korbacher Open 2017"]
[Site "Korbach"]
[Date "2017.10.21"]
[Round "5"]
[White "Van de Griend, Johan"]
[Black "Thomas, Ingo"]
[Result "0-1"]
[ECO "B00"]
[WhiteElo "1797"]
[BlackElo "2129"]
[Annotator "NA"]
[PlyCount "84"]
[EventDate "2017.??.??"]
[EventType "swiss"]
[EventCountry "GER"]
[SourceTitle "playchess.com"]
[Source "ChessBase"]
[SourceQuality "1"]
[TimeControl "40/5400+30:1800+30"]

1. e4 {[%emt 0:00:00]} Nc6 {[%emt 0:00:15]} 2. d4 {[%emt 0:00:00]} d5 {[%emt 0:00:04]} 3. e5 {[%emt 0:00:00]} Bf5 {[%emt 0:01:45]} 4. c3 {[%emt 0:00:08]} e6 {[%emt 0:00:29]} 5. Bd3 {[%emt 0:00:57]} Bxd3 {[%emt 0:02:09]} 6. Qxd3 {[%emt 0:00:08]} Qd7 {[%emt 0:00:24]} 7. Ne2 {[%emt 0:03:20]} Nb8 {[%emt 0:06:55]} 8. O-O {[%emt 0:04:44]} c5 {[%emt 0:01:45]} 9. b3 {[%emt 0:06:30]} Na6 {[%emt 0:02:20]} 10. Bd2 {[%emt 0:10:02]} Rc8 {[%emt 0:03:04]} 11. a3 {[%emt 0:07:05]} c4 {[%emt 0:02:53]} 12. bxc4 {[%emt 0:00:22]} Rxc4 {[%emt 0:00:27]} 13. f4 {[%emt 0:03:06]} Ne7 {[%emt 0:01:32]} 14. Bc1 {[%emt 0:00:28]} Nf5 {[%emt 0:03:22]} 15. Nd2 {[%emt 0:04:16]} Rc7 {[%emt 0:00:06]} 16. Ng3 {[%emt 0:00:47]} Nxg3 {[%emt 0:06:14]} 17. Qxg3 {[%emt 0:03:11]} Qc8 {[%emt 0:00:14]} 18. Bb2 {[%emt 0:00:58]} g6 {[%emt 0:00:25]} 19. Qd3 {[%emt 0:01:12]} h5 {[%emt 0:01:12]} 20. Rac1 {[%emt 0:03:24]} Be7 {[%emt 0:02:10]} 21. c4 {[%emt 0:04:31]} dxc4 {[%emt 0:00:16]} 22. Nxc4 {[%emt 0:01:41]} Qd7 {[%emt 0:03:23]} 23. Qe2 {[%emt 0:08:07]} O-O {[%emt 0:04:26]} 24. Ne3 {[%emt 0:10:21]} Rfc8 {[%emt 0:02:58]} 25. Rxc7 {[%emt 0:01:56]} Nxc7 {[%emt 0:00:52]} 26. Rc1 {[%emt 0:02:21]} Na6 {[%emt 0:14:59]} 27. Rxc8+ {[%emt 0:06:14]} Qxc8 {[%emt 0:00:04]} 28. g4 {[%emt 0:00:12]} hxg4 {[%emt 0:00:29]} 29. Nxg4 {[%emt 0:00:27]} Qc6 {[%emt 0:03:05]} 30. Nf6+ {[%emt 0:02:47]} Bxf6 {[%emt 0:06:40]} 31. exf6 {[%emt 0:00:01]} Qd5 {[%emt 0:00:29]} 32. Qc2 {[%emt 0:04:01]} Qd8 {[%emt 0:01:51]} 33. Qg2 {[%emt 0:03:56]} Qd5 {[%emt 0:06:14]} 34. Qc2 {[%emt 0:00:34]} Qc6 {[%emt 0:00:56]} 35. Qf2 {[%emt 0:04:08]} Qe4 {[%emt 0:04:41]} 36. h4 {[%emt 0:01:39]} Nc7 {[%emt 0:00:32]} 37. h5 {[%emt 0:02:26]} gxh5 {[%emt 0:00:37]} 38. Bc1 {[%emt 0:01:04]} Nd5 {[%emt 0:00:57]} 39. Qh4 {[%emt 0:01:16]} Qg6+ {[%emt 0:03:14]} 40. Kh2 {[%emt 0:00:55]} Kh7 {[%emt 0:35:15]} 41. f5 {[%emt 0:05:02]} Qxf5 {[%emt 0:00:00]} 42. Bg5 {[%emt 0:00:27]} Kg6 {[%emt 0:00:00]} 0-1

[Event "9. Korbacher Open 2017"]
[Site "Korbach"]
[Date "2017.10.21"]
[Round "5"]
[White "Bayer, Martin"]
[Black "Launert, Martin"]
[Result "1-0"]
[ECO "C44"]
[WhiteElo "1732"]
[BlackElo "1879"]
[Annotator "NA RC"]
[PlyCount "135"]
[EventDate "2017.??.??"]
[EventType "swiss"]
[EventCountry "GER"]
[SourceTitle "playchess.com"]
[Source "ChessBase"]
[SourceQuality "1"]
[TimeControl "40/5400+30:1800+30"]

1. e4 {[%emt 0:01:17]} e5 {[%emt 0:00:04]} 2. Nf3 {[%emt 0:00:03]} Nc6 {[%emt 0:00:04]} 3. d4 {[%emt 0:00:42]} exd4 {[%emt 0:00:06]} 4. Bc4 {[%emt 0:00:04]} d6 {[%emt 0:10:57]} 5. Nxd4 {[%emt 0:10:40]} Nf6 {[%emt 0:01:35]} 6. Nc3 {[%emt 0:01:50]} Be7 {[%emt 0:01:15]} 7. O-O {[%emt 0:02:39]} O-O {[%emt 0:01:06]} 8. h3 {[%emt 0:01:10]} Bd7 {[%emt 0:02:32]} 9. f4 {[%emt 0:00:31]} a6 {[%emt 0:06:35] C50: Italienische Partie} (9... Re8 10. Nf3 h6 11. e5 dxe5 12. Ng5 hxg5 13. fxg5 Be6 14. Bxe6 Bc5+ 15. Kh1 Rxe6 16. gxf6 Rxf6 17. Ne4 Rxf1+ 18. Qxf1 {0-1 (62) Kalashnikov,K (2399)-Grachev,J (2352) Novosibirsk 2001}) 10. Be3 {[%emt 0:05:24]} b5 {[%emt 0:06:55]} 11. Bd3 {[%emt 0:00:39]} Nxd4 {[%emt 0:09:17]} 12. Bxd4 {[%emt 0:00:09]} Bc6 $146 {[%emt 0:06:08]} ({Vorgänger:} 12... c5 13. Be3 Bc6 14. e5 dxe5 15. fxe5 Nd5 16. Qd2 Nxc3 17. Qxc3 {½-½ (35) Rueda Delgado,F (1981)-Ramirez Rus,E (2055) Mondariz 2004}) 13. a3 {[%emt 0:01:31]} Bb7 {[%emt 0:02:30]} 14. Re1 {[%emt 0:14:22]} c5 {[%emt 0:08:04]} 15. Bf2 {[%emt 0:01:04]} Qc7 {[%emt 0:02:59]} 16. e5 {[%emt 0:13:10]} Qc6 {[%emt 0:04:00]} 17. Be4 {[%emt 0:03:59]} Nxe4 {[%emt 0:01:01]} 18. Nxe4 {[%emt 0:00:18]} d5 {[%emt 0:03:45]} 19. Nd2 {[%emt 0:02:54]} d4 {[%emt 0:02:32]} 20. Ne4 {[%emt 0:01:23]} f5 {[%emt 0:03:51]} 21. exf6 {[%emt 0:00:34]} Bxf6 {[%emt 0:00:08]} 22. Qg4 {[%emt 0:04:41]} Rad8 {[%emt 0:03:06]} 23. Re2 {[%emt 0:03:37]} d3 {[%emt 0:04:50]} 24. cxd3 {[%emt 0:00:14]} Rxd3 {[%emt 0:00:09]} 25. Bxc5 {[%emt 0:08:58]} Bc8 {[%emt 0:03:35]} 26. Qh5 {[%emt 0:03:51]} g6 {[%emt 0:02:24]} 27. Qh6 {[%emt 0:04:32]} Bg7 28. Qg5 {[%emt 0:02:35]} Rf5 {[%emt 0:07:11]} 29. Qe7 {[%emt 0:03:45]} Bf8 {[%emt 0:00:44]} 30. Qe8 {[%emt 0:04:50]} Bd7 {[%emt 0:01:58]} 31. Qd8 {[%emt 0:01:17]} Qc8 {[%emt 0:01:40]} 32. Qxc8 {[%emt 0:00:45]} Bxc8 {[%emt 0:00:07]} 33. Bxf8 {[%emt 0:00:14]} Rxf8 {[%emt 0:00:04]} 34. Rf1 {[%emt 0:00:26]} Kg7 {[%emt 0:03:02]} 35. Kh2 {[%emt 0:00:53]} h6 {[%emt 0:01:19]} 36. g3 {[%emt 0:00:59]} g5 {[%emt 0:00:30]} 37. Nc5 {[%emt 0:00:29]} Rd6 {[%emt 0:00:53]} 38. Kg2 {[%emt 0:00:53]} Rf5 {[%emt 0:00:58]} 39. Ne4 {[%emt 0:01:11]} Rd3 {[%emt 0:00:32]} 40. Rf3 {[%emt 0:00:46]} Rxf3 {[%emt 0:31:15]} 41. Kxf3 {[%emt 0:30:12]} Bb7 {[%emt 0:00:40]} 42. Kg4 {[%emt 0:00:57]} Kg6 {[%emt 0:00:00]} 43. fxg5 {[%emt 0:00:00]} hxg5 {[%emt 0:00:00]} 44. h4 {[%emt 0:00:00]} Re5 {[%emt 0:00:00]} 45. Nc3 {[%emt 0:00:00]} Bc8+ {[%emt 0:00:00]} 46. Kf3 {[%emt 0:00:00]} Rf5+ {[%emt 0:00:00]} 47. Ke4 {[%emt 0:00:00]} gxh4 {[%emt 0:00:00]} 48. gxh4 {[%emt 0:00:00]} Bb7+ {[%emt 0:00:00]} 49. Kd4 {[%emt 0:00:00]} Kh5 $18 {[%emt 0:00:00] [#]} (49... Rh5 $16 {is more resistant.}) 50. Re5 $1 {[%emt 0:00:00]} Rxe5 {[%emt 0:00:00]} 51. Kxe5 {[%emt 0:00:00]} Kxh4 {[%emt 0:00:00]} 52. Kd6 {[%emt 0:00:00]} Kg5 {[%emt 0:00:00]} 53. Kc7 {[%emt 0:00:00]} Bg2 {[%emt 0:00:00]} 54. Kb6 {[%emt 0:00:00]} Bf1 {[%emt 0:00:00]} 55. b4 {[%emt 0:00:00]} Kf5 {[%emt 0:00:00]} 56. Kxa6 {[%emt 0:00:00]} Ke5 {[%emt 0:00:00]} 57. Nxb5 {[%emt 0:00:00]} Kd5 {[%emt 0:00:03]} 58. a4 {[%emt 0:00:00]} Kc6 {[%emt 0:01:07]} 59. Ka5 {[%emt 0:00:00]} Kb7 {[%emt 0:02:07]} 60. Nd4 {[%emt 0:00:00]} Bd3 {[%emt 0:00:24]} 61. b5 {[%emt 0:00:00]} Bf1 {[%emt 0:00:34]} 62. Kb4 {[%emt 0:00:00]} Ka7 {[%emt 0:00:10]} 63. a5 {[%emt 0:00:00]} Kb7 {[%emt 0:00:11]} 64. Kc5 {[%emt 0:00:00]} Bg2 {[%emt 0:00:08]} 65. a6+ {[%emt 0:00:00]} Ka7 {[%emt 0:00:22]} 66. Nc6+ {[%emt 0:00:00]} Ka8 {[%emt 0:00:54]} 67. b6 {[%emt 0:00:00]} Bxc6 {[%emt 0:00:10]} 68. Kxc6 {[%emt 0:00:00]} 1-0

[Event "9. Korbacher Open 2017"]
[Site "Korbach"]
[Date "2017.10.21"]
[Round "5"]
[White "Sakhra, Roman"]
[Black "Held, Martin"]
[Result "1/2-1/2"]
[ECO "D00"]
[WhiteElo "1489"]
[BlackElo "1821"]
[Annotator "NA"]
[PlyCount "68"]
[EventDate "2017.??.??"]
[EventType "swiss"]
[EventCountry "GER"]
[SourceTitle "playchess.com"]
[Source "ChessBase"]
[SourceQuality "1"]
[TimeControl "40/5400+30:1800+30"]

1. d4 {[%emt 0:00:00]} d5 {[%emt 0:00:52]} 2. Bf4 {[%emt 0:00:00]} Bf5 {[%emt 0:00:24]} 3. e3 {[%emt 0:00:00]} Nf6 {[%emt 0:01:15]} 4. Nf3 {[%emt 0:02:02]} e6 {[%emt 0:06:22]} 5. Nh4 {[%emt 0:00:17]} Bg4 {[%emt 0:04:38]} 6. Nf3 {[%emt 0:02:25]} Nh5 {[%emt 0:06:53]} 7. Bg3 {[%emt 0:00:12]} Nxg3 {[%emt 0:00:46]} 8. hxg3 {[%emt 0:00:08]} c5 {[%emt 0:04:02]} 9. c3 {[%emt 0:00:07]} Nc6 {[%emt 0:02:23]} 10. Be2 {[%emt 0:00:46]} Qb6 {[%emt 0:02:50]} 11. Qb3 {[%emt 0:01:22]} Qxb3 {[%emt 0:03:20]} 12. axb3 {[%emt 0:00:11]} cxd4 {[%emt 0:01:32]} 13. exd4 {[%emt 0:00:21]} Bf5 {[%emt 0:06:37]} 14. Nbd2 {[%emt 0:00:43]} h6 {[%emt 0:01:09]} 15. Bb5 {[%emt 0:02:53]} Bd6 {[%emt 0:07:46]} 16. Ne5 {[%emt 0:01:24]} Bxe5 {[%emt 0:03:14]} 17. dxe5 {[%emt 0:00:11]} Kd7 {[%emt 0:06:06]} 18. Nf3 {[%emt 0:07:28]} Be4 {[%emt 0:02:20]} 19. Nd2 {[%emt 0:08:37]} Bxg2 {[%emt 0:02:22]} 20. Rh2 {[%emt 0:02:36]} Be4 {[%emt 0:00:28]} 21. Nxe4 {[%emt 0:00:08]} dxe4 {[%emt 0:00:06]} 22. Rh4 {[%emt 0:00:06]} a6 {[%emt 0:00:53]} 23. Bxc6+ {[%emt 0:00:11]} Kxc6 {[%emt 0:00:34]} 24. Rd1 {[%emt 0:01:36]} Rad8 {[%emt 0:01:20]} 25. Rxd8 {[%emt 0:01:12]} Rxd8 {[%emt 0:00:06]} 26. Rxe4 {[%emt 0:00:18]} Rd5 {[%emt 0:03:26]} 27. Ke2 {[%emt 0:05:52]} Rb5 {[%emt 0:02:53]} 28. b4 {[%emt 0:05:20]} a5 {[%emt 0:03:34]} 29. f4 {[%emt 0:01:15]} axb4 {[%emt 0:02:53]} 30. Rc4+ {[%emt 0:01:18]} Kd7 {[%emt 0:06:04]} 31. Rd4+ {[%emt 0:00:58]} Ke7 {[%emt 0:01:34]} 32. cxb4 {[%emt 0:00:55]} Rd5 {[%emt 0:02:00]} 33. Rc4 {[%emt 0:15:57]} Kd7 {[%emt 0:00:09]} 34. Ke3 {[%emt 0:04:42]} b5 {[%emt 0:02:34]} 1/2-1/2

[Event "9. Korbacher Open 2017"]
[Site "Korbach"]
[Date "2017.10.21"]
[Round "5"]
[White "Hildebrand, Georg"]
[Black "Achermann, Didier"]
[Result "0-1"]
[ECO "A16"]
[WhiteElo "1477"]
[BlackElo "1811"]
[Annotator "NA"]
[PlyCount "120"]
[EventDate "2017.??.??"]
[EventType "swiss"]
[EventCountry "GER"]
[SourceTitle "playchess.com"]
[Source "ChessBase"]
[SourceQuality "1"]
[TimeControl "40/5400+30:1800+30"]

1. c4 {[%emt 0:01:09]} Nf6 {[%emt 0:00:10]} 2. Nc3 {[%emt 0:00:54]} g6 {[%emt 0:00:12]} 3. g3 {[%emt 0:01:02]} Bg7 {[%emt 0:00:06]} 4. Bg2 {[%emt 0:00:13]} O-O {[%emt 0:00:10]} 5. Nf3 {[%emt 0:01:17]} d6 {[%emt 0:00:12]} 6. O-O {[%emt 0:00:37]} c5 {[%emt 0:03:21]} 7. d3 {[%emt 0:01:52]} Nc6 {[%emt 0:00:26]} 8. a3 {[%emt 0:00:43]} Bd7 {[%emt 0:00:51]} 9. Kh1 {[%emt 0:00:38]} Re8 {[%emt 0:00:48]} 10. Ng1 {[%emt 0:01:00]} Rb8 {[%emt 0:02:04]} 11. Rb1 {[%emt 0:00:40]} Qc8 {[%emt 0:02:07]} 12. b4 {[%emt 0:06:46]} cxb4 {[%emt 0:02:29]} 13. axb4 {[%emt 0:00:12]} a6 {[%emt 0:01:01]} 14. b5 {[%emt 0:07:51]} Nd4 {[%emt 0:06:04]} 15. b6 {[%emt 0:09:02]} Bc6 {[%emt 0:01:38]} 16. Nd5 {[%emt 0:09:43]} Nxd5 {[%emt 0:03:53]} 17. cxd5 {[%emt 0:03:49]} Bb5 {[%emt 0:01:51]} 18. Bd2 {[%emt 0:08:59]} Qd8 {[%emt 0:03:53]} 19. Ba5 {[%emt 0:00:50]} Rc8 {[%emt 0:01:21]} 20. Qd2 {[%emt 0:06:20]} Bd7 {[%emt 0:05:24]} 21. Rfc1 {[%emt 0:03:29]} Rxc1 {[%emt 0:06:07]} 22. Qxc1 {[%emt 0:01:10]} Nb5 {[%emt 0:00:10]} 23. e3 {[%emt 0:08:26]} Qb8 {[%emt 0:02:09]} 24. d4 {[%emt 0:03:53]} Rc8 {[%emt 0:00:34]} 25. Qb2 {[%emt 0:01:45]} Kf8 {[%emt 0:03:16]} 26. Rc1 {[%emt 0:02:15]} Rxc1 {[%emt 0:01:11]} 27. Qxc1 {[%emt 0:00:13]} Qc8 {[%emt 0:00:08]} 28. Qb2 {[%emt 0:01:43]} Qc4 {[%emt 0:03:45]} 29. Qb4 {[%emt 0:01:15]} Qc1 {[%emt 0:04:34]} 30. Qd2 {[%emt 0:00:53]} Qxd2 {[%emt 0:00:37]} 31. Bxd2 {[%emt 0:00:11]} Ke8 {[%emt 0:00:15]} 32. Bb4 {[%emt 0:02:09]} Kd8 {[%emt 0:00:27]} 33. Ne2 {[%emt 0:04:07]} Kc8 {[%emt 0:00:20]} 34. h4 {[%emt 0:00:58]} h5 {[%emt 0:00:13]} 35. Kh2 {[%emt 0:00:40]} Bf6 {[%emt 0:01:30]} 36. f4 {[%emt 0:00:37]} e6 {[%emt 0:00:58]} 37. Bf3 {[%emt 0:01:46]} Bd8 {[%emt 0:00:38]} 38. Ba5 {[%emt 0:00:34]} Na3 {[%emt 0:00:22]} 39. dxe6 {[%emt 0:02:57]} Bxe6 {[%emt 0:02:00]} 40. d5 {[%emt 0:00:51]} Bd7 {[%emt 0:31:10]} 41. Nd4 {[%emt 0:34:13]} Nc4 {[%emt 0:04:34]} 42. Bb4 {[%emt 0:00:28]} Bxb6 {[%emt 0:00:49]} 43. Nc6 {[%emt 0:01:21]} Bxe3 {[%emt 0:02:11]} 44. Ne7+ {[%emt 0:00:54]} Kd8 {[%emt 0:04:43]} 45. Ng8 {[%emt 0:00:48]} a5 {[%emt 0:05:13]} 46. Bc3 {[%emt 0:00:43]} Bb6 {[%emt 0:09:45]} 47. Be2 {[%emt 0:00:00]} Ne3 {[%emt 0:00:00]} 48. Bf3 {[%emt 0:00:00]} Bb5 {[%emt 0:00:00]} 49. Bf6+ {[%emt 0:00:00]} Kd7 {[%emt 0:00:00]} 50. Nh6 {[%emt 0:00:00]} Ke8 {[%emt 0:00:00]} 51. Ng8 {[%emt 0:00:00]} Bc4 {[%emt 0:00:00]} 52. Ne7 {[%emt 0:00:00]} a4 {[%emt 0:00:00]} 53. Nc8 {[%emt 0:00:00]} Bc5 {[%emt 0:00:00]} 54. Ne7 {[%emt 0:00:00]} a3 {[%emt 0:00:00]} 55. Nc6 {[%emt 0:00:00]} Bxd5 {[%emt 0:00:00]} 56. Bxd5 {[%emt 0:00:00]} Nxd5 {[%emt 0:00:00]} 57. Bd4 {[%emt 0:00:00]} bxc6 {[%emt 0:00:00]} 58. Bxc5 {[%emt 0:00:00]} dxc5 {[%emt 0:00:00]} 59. Kh3 {[%emt 0:00:00]} a2 {[%emt 0:00:00]} 60. g4 {[%emt 0:00:00]} a1=Q {[%emt 0:00:00]} 0-1